bitfinex/quotes_BTCUSD_20251110
["timestamp","ask_amount","ask_price","bid_price","bid_amount"]
[1762811459165,0.83180421,105530.0,105520.0,0.0012357]
[1762811459339,1.48062137,105530.0,105520.0,0.0012357]
[1762811460648,1.15621279,105530.0,105520.0,0.0012357]
[1762811460857,1.25431452,105530.0,105520.0,0.0012357]
[1762811461033,1.62406101,105530.0,105520.0,0.0012357]
[1762811461276,1.6578471,105530.0,105520.0,0.0012357]
[1762811461906,1.62772329,105530.0,105520.0,0.0012357]
[1762811462094,1.62772329,105530.0,105520.0,0.0002357]
[1762811462506,1.53062156,105530.0,105520.0,0.0002357]
[1762811462870,1.56039458,105530.0,105520.0,0.0002357]
[1762811463082,1.55939458,105530.0,105520.0,0.0002357]
[1762811463333,1.92164343,105530.0,105520.0,0.0002357]
[1762811463544,2.18725689,105530.0,105520.0,0.0002357]
[1762811463671,2.77918226,105510.0,105500.0,2.22227471]
[1762811463881,3.58268081,105510.0,105500.0,2.22227471]
[1762811464077,3.60946225,105510.0,105500.0,2.22227471]
[1762811464295,3.65283666,105510.0,105500.0,2.22274621]
[1762811464946,3.72368966,105510.0,105500.0,2.22274621]
[1762811465139,3.72568966,105510.0,105500.0,2.22274621]
[1762811465573,3.72668966,105510.0,105500.0,2.22274621]
[1762811466202,3.69281994,105510.0,105500.0,2.22274621]
[1762811466797,3.79092167,105510.0,105500.0,2.22274621]
[1762811468004,3.69281994,105510.0,105500.0,2.22274621]
[1762811468417,3.63626548,105510.0,105500.0,2.22274621]
[1762811468660,3.69240797,105510.0,105500.0,2.22274621]
[1762811469681,3.66603358,105510.0,105500.0,2.22274621]
[1762811470096,3.63626548,105510.0,105500.0,2.22274621]
[1762811470310,2.47852864,105510.0,105500.0,2.41231966]
[1762811470510,1.56545864,105510.0,105500.0,2.22274621]
[1762811470713,1.60164092,105510.0,105500.0,2.22274621]
[1762811471129,1.61651053,105510.0,105500.0,2.22274621]
[1762811471448,1.2518295,105510.0,105500.0,2.22274621]
[1762811471660,1.50538508,105510.0,105500.0,2.41231966]
[1762811471864,1.35280508,105510.0,105500.0,2.41231966]
[1762811472272,1.35280508,105510.0,105500.0,2.22274621]
[1762811473447,1.33793547,105510.0,105500.0,2.22274621]
[1762811474246,1.33793547,105510.0,105500.0,2.41231966]
[1762811474450,1.33793547,105510.0,105500.0,2.22274621]
[1762811474868,1.28935447,105510.0,105500.0,2.22274621]
[1762811475687,1.28935447,105510.0,105500.0,2.41231966]
[1762811475935,1.28935447,105510.0,105500.0,2.22274621]
[1762811476164,1.28935447,105510.0,105500.0,2.41231966]
[1762811476922,1.28935447,105510.0,105500.0,2.22274621]
[1762811477121,0.96494589,105510.0,105500.0,2.41231966]
[1762811477386,1.28935447,105510.0,105500.0,2.41231966]
[1762811477577,0.3910957,105510.0,105500.0,2.73672824]
[1762811477753,0.02059144,105510.0,105500.0,2.73672824]
[1762811478286,0.34359144,105510.0,105500.0,2.73672824]
[1762811478443,0.34359144,105510.0,105500.0,2.41231966]
[1762811478686,0.66800002,105510.0,105500.0,2.41231966]
[1762811478845,0.66600002,105510.0,105500.0,2.41231966]
[1762811479051,0.68500003,105510.0,105500.0,2.41231966]
[1762811479280,0.68400003,105510.0,105500.0,2.41231966]
[1762811479475,0.88845203,105510.0,105500.0,2.22274621]
[1762811479675,0.88845203,105510.0,105500.0,2.41431966]
[1762811480087,1.08845203,105510.0,105500.0,2.22474621]
[1762811480424,1.08845203,105510.0,105500.0,2.22274621]
[1762811480636,1.08945203,105510.0,105500.0,2.22674621]
[1762811481025,1.08845203,105510.0,105500.0,2.41231966]
[1762811481328,1.5649687,105510.0,105500.0,2.22574621]
[1762811481695,1.5940445,105510.0,105500.0,2.22574621]
[1762811482227,1.29813678,105510.0,105500.0,2.22574621]
[1762811482372,1.29713678,105510.0,105500.0,2.22574621]
[1762811483400,1.62154536,105510.0,105500.0,2.22574621]
[1762811483855,1.63641472,105510.0,105500.0,2.22574621]
[1762811484058,1.25483528,105510.0,105500.0,2.22574621]
[1762811484461,1.23583527,105510.0,105500.0,2.22574621]
[1762811488611,0.91142669,105510.0,105500.0,2.22574621]
[1762811488777,1.22096591,105510.0,105500.0,2.22574621]
[1762811490174,1.54537449,105510.0,105500.0,2.22574621]
[1762811490580,1.22096591,105510.0,105500.0,2.22574621]
[1762811490779,1.54537449,105510.0,105500.0,2.22574621]
[1762811492301,1.22096591,105510.0,105500.0,2.22574621]
[1762811492810,1.31237573,105510.0,105500.0,2.22574621]
[1762811493007,1.22096591,105510.0,105500.0,2.22574621]
[1762811493210,0.92195962,105510.0,105500.0,2.22574621]
[1762811493417,1.26536821,105510.0,105500.0,2.22574621]
[1762811494396,1.23996592,105510.0,105500.0,2.22574621]
[1762811495008,1.5643745,105510.0,105500.0,2.22574621]
[1762811495209,1.58977679,105510.0,105500.0,2.22574621]
[1762811495825,1.26536821,105510.0,105500.0,2.22574621]
[1762811496291,1.2813127,105510.0,105500.0,2.22574621]
[1762811496689,1.15681899,105510.0,105500.0,2.41531966]
[1762811496995,1.16722876,105510.0,105500.0,2.41531966]
[1762811497668,1.16722876,105510.0,105500.0,2.22574621]
[1762811497872,1.16722876,105510.0,105500.0,2.41531966]
[1762811498677,1.16722876,105510.0,105500.0,2.22574621]
[1762811499262,1.16722876,105510.0,105500.0,2.41531966]
[1762811499464,1.16722876,105510.0,105500.0,2.22574621]
[1762811500037,1.14263848,105510.0,105500.0,2.41531966]
[1762811500271,0.94263848,105510.0,105500.0,2.41531966]
[1762811500485,0.97882076,105510.0,105500.0,2.41531966]
[1762811500708,0.6182299,105510.0,105500.0,2.41531966]
[1762811500892,0.94263848,105510.0,105500.0,2.41531966]
[1762811501110,0.97882076,105510.0,105500.0,2.22574621]
[1762811501330,2.77163535,105510.0,105500.0,2.22574621]
[1762811501543,2.83044084,105510.0,105500.0,2.22574621]
[1762811501762,2.87431055,105510.0,105500.0,2.22574621]
[1762811502430,2.87331055,105510.0,105500.0,2.22274621]
[1762811502573,2.87331055,105510.0,105500.0,2.22374621]
[1762811502785,2.87431055,105510.0,105500.0,2.22374621]
[1762811504258,1.41637605,105510.0,105500.0,2.22374621]
[1762811505019,1.41643268,105510.0,105500.0,2.22374621]
[1762811505222,1.42643267,105510.0,105500.0,2.22374621]
[1762811505446,1.42643267,105510.0,105500.0,2.41331966]
[1762811507583,1.41643268,105510.0,105500.0,2.41331966]
[1762811508022,1.42643267,105510.0,105500.0,2.22374621]
[1762811508449,1.41643268,105510.0,105500.0,2.22374621]
[1762811508670,1.42643267,105510.0,105500.0,2.22374621]
[1762811509788,1.45809451,105510.0,105500.0,2.22374621]
[1762811509974,1.42643267,105510.0,105500.0,2.22374621]
[1762811510463,1.45809451,105510.0,105500.0,2.22374621]
[1762811510680,1.44809452,105510.0,105500.0,2.22374621]
[1762811511327,1.41643268,105510.0,105500.0,2.22374621]
[1762811511559,1.7847676,105510.0,105500.0,2.22374621]
[1762811512206,1.81579898,105510.0,105500.0,2.22374621]
[1762811512429,1.84276763,105510.0,105500.0,2.22374621]
[1762811515790,1.83276764,105510.0,105500.0,2.22374621]
[1762811516007,1.84276763,105510.0,105500.0,2.22374621]
[1762811516968,1.87515763,105510.0,105500.0,2.22374621]
[1762811517212,1.79476759,105510.0,105500.0,2.22374621]
[1762811518621,1.82173624,105510.0,105500.0,2.22374621]
[1762811518833,1.79476759,105510.0,105500.0,2.22374621]
[1762811519671,1.82582868,105510.0,105500.0,2.22374621]
[1762811519885,1.8903064,105510.0,105500.0,2.22374621]
[1762811520107,1.80042639,105510.0,105500.0,2.22374621]
[1762811520330,1.79479513,105510.0,105500.0,2.22374621]
[1762811521375,1.46032993,105510.0,105500.0,2.22374621]
[1762811521614,1.26032993,105510.0,105500.0,2.22374621]
[1762811521836,1.47520128,105510.0,105500.0,2.22374621]
[1762811522011,1.48520127,105510.0,105500.0,2.22374621]
[1762811522230,1.54943328,105510.0,105500.0,2.22374621]
[1762811522429,1.80966648,105510.0,105500.0,2.22374621]
[1762811522630,1.39514929,105510.0,105500.0,2.22374621]
[1762811522835,1.36297546,105510.0,105500.0,2.22374621]
[1762811523033,1.35038162,105510.0,105500.0,2.22374621]
[1762811523322,1.35584946,105510.0,105500.0,2.22374621]
[1762811523975,1.45395119,105510.0,105500.0,2.22374621]
[1762811524188,1.68031467,105510.0,105500.0,2.22374621]
[1762811524428,1.35584946,105510.0,105500.0,2.22374621]
[1762811524604,1.38281811,105510.0,105500.0,2.22374621]
[1762811524836,1.4138792,105510.0,105500.0,2.22374621]
[1762811526239,1.44238031,105510.0,105500.0,2.22374621]
[1762811526445,1.4678043,105510.0,105500.0,2.22374621]
[1762811528397,1.44238031,105510.0,105500.0,2.22374621]
[1762811529132,1.44238031,105510.0,105500.0,2.22287404]
[1762811532414,1.1179151,105510.0,105500.0,2.22287404]
[1762811532612,1.31129957,105510.0,105500.0,2.22287404]
[1762811533927,1.32617038,105510.0,105500.0,2.22287404]
[1762811534128,1.31129957,105510.0,105500.0,2.22287404]
[1762811534323,1.33672356,105510.0,105500.0,2.22287404]
[1762811535247,1.31129957,105510.0,105500.0,2.22287404]
[1762811535452,0.98683436,105510.0,105500.0,2.41244749]
[1762811535662,1.33672356,105510.0,105500.0,2.41244749]
[1762811535892,1.33672356,105510.0,105500.0,2.22287404]
[1762811536306,1.31129957,105510.0,105500.0,2.22287404]
[1762811537723,1.7649276,105510.0,105500.0,2.22287404]
[1762811537934,1.71921851,105510.0,105500.0,2.22287404]
[1762811538751,1.66118877,105510.0,105500.0,2.22287404]
[1762811539146,1.33672356,105510.0,105500.0,2.22287404]
[1762811539593,1.66118877,105510.0,105500.0,2.22287404]
[1762811539770,1.71921851,105510.0,105500.0,2.22287404]
[1762811540176,1.81732024,105510.0,105500.0,2.22287404]
[1762811540606,1.78881913,105510.0,105500.0,2.22287404]
[1762811540807,1.6907174,105510.0,105500.0,2.22287404]
[1762811541469,1.70071739,105510.0,105500.0,2.22287404]
[1762811541676,1.76460211,105510.0,105500.0,2.22287404]
[1762811541877,2.0540376,105510.0,105500.0,2.22287404]
[1762811542119,2.00323302,105510.0,105500.0,2.22287404]
[1762811542325,1.96263685,105510.0,105500.0,2.22287404]
[1762811542526,1.96163685,105510.0,105500.0,2.22287404]
[1762811542733,1.93057576,105510.0,105500.0,2.22187404]
[1762811542939,1.96363685,105510.0,105500.0,2.22187404]
[1762811544427,1.96463685,105510.0,105500.0,2.15087404]
[1762811544675,1.97950969,105510.0,105500.0,2.15087404]
[1762811544887,1.89450264,105510.0,105500.0,2.15087404]
[1762811545302,1.92838673,105510.0,105500.0,2.15087404]
[1762811545712,1.830285,105510.0,105500.0,2.15087404]
[1762811545942,1.79922391,105510.0,105500.0,2.15087404]
[1762811546149,1.830285,105510.0,105500.0,2.15087404]
[1762811547327,1.79922391,105510.0,105500.0,2.15087404]
[1762811547539,1.830285,105510.0,105500.0,2.15087404]
[1762811547758,1.79922391,105510.0,105500.0,2.15087404]
[1762811548189,1.89732564,105510.0,105500.0,2.15087404]
[1762811548405,1.92838753,105510.0,105500.0,2.15087404]
[1762811548619,1.89732644,105510.0,105500.0,2.15087404]
[1762811548834,1.92838753,105510.0,105500.0,2.15087404]
[1762811549055,1.72139847,105510.0,105500.0,2.15087404]
[1762811549478,1.75245956,105510.0,105500.0,2.15087404]
[1762811550135,1.78162275,105510.0,105500.0,2.15087404]
[1762811550556,1.75056166,105510.0,105500.0,2.15087404]
[1762811550757,1.78162275,105510.0,105500.0,2.15087404]
[1762811550969,1.87972448,105510.0,105500.0,2.15087404]
[1762811551189,1.86485153,105510.0,105500.0,2.15087404]
[1762811551410,1.89023568,105510.0,105500.0,2.15087404]
[1762811551639,1.89978505,105510.0,105500.0,2.15087404]
[1762811552058,1.89978505,105510.0,105500.0,2.07987404]
[1762811552686,1.80168332,105510.0,105500.0,2.07987404]
[1762811554279,1.81655606,105510.0,105500.0,2.07987404]
[1762811554484,1.79117191,105510.0,105500.0,2.07987404]
[1762811559054,1.81655542,105510.0,105500.0,2.00887404]
[1762811561330,1.79117191,105510.0,105500.0,2.00887404]
[1762811561543,1.81655414,105510.0,105500.0,2.00887404]
[1762811561753,1.91465587,105510.0,105500.0,2.00887404]
[1762811561964,1.88927364,105510.0,105500.0,2.00887404]
[1762811565277,1.7558568,105510.0,105500.0,2.00887404]
[1762811565483,1.72669361,105510.0,105500.0,2.00887404]
[1762811565898,1.78746978,105510.0,105500.0,2.00887404]
[1762811566097,1.88557151,105510.0,105500.0,2.00887404]
[1762811566305,1.88557151,105510.0,105500.0,1.93787404]
[1762811566506,2.21008799,105510.0,105500.0,1.93787404]
[1762811566709,2.18469897,105510.0,105500.0,1.93787404]
[1762811568271,2.19957137,105510.0,105500.0,1.93787404]
[1762811569113,2.25042896,105510.0,105500.0,1.93787404]
[1762811571465,2.21654487,105510.0,105500.0,1.93787404]
[1762811571669,1.89202839,105510.0,105500.0,1.93787404]
[1762811571820,2.21654487,105510.0,105500.0,1.93787404]
[1762811573221,2.21654487,105510.0,105500.0,1.86687404]
[1762811573626,2.43004008,105510.0,105500.0,1.86687404]
[1762811574058,2.40610036,105510.0,105500.0,1.86687404]
[1762811574514,2.21654487,105510.0,105500.0,1.86687404]
[1762811574716,2.18738168,105510.0,105500.0,1.86687404]
[1762811575207,1.97738169,105510.0,105500.0,1.86687404]
[1762811575463,2.18738168,105510.0,105500.0,1.86687404]
[1762811575844,2.37693717,105510.0,105500.0,1.86687404]
[1762811576042,2.71402326,105510.0,105500.0,1.86687404]
[1762811576380,2.66316567,105510.0,105500.0,1.86687404]
[1762811576881,2.60491111,105510.0,105500.0,1.86687404]
[1762811577110,2.63652409,105510.0,105500.0,1.86687404]
[1762811577288,2.62165169,105510.0,105500.0,1.86687404]
[1762811578606,2.59003871,105510.0,105500.0,1.86687404]
[1762811579568,2.7795942,105510.0,105500.0,1.86687404]
[1762811579971,2.83041248,105510.0,105500.0,1.86687404]
[1762811580186,2.84528555,105510.0,105500.0,1.86687404]
[1762811580387,2.84528555,105510.0,105500.0,1.79587404]
[1762811580587,2.85428555,105510.0,105500.0,1.79587404]
[1762811581190,2.86172183,105510.0,105500.0,1.79587404]
[1762811581594,2.87659512,105510.0,105500.0,1.79587404]
[1762811582176,2.92739387,105510.0,105500.0,1.79587404]
[1762811582973,2.82929214,105510.0,105500.0,1.79587404]
[1762811583175,2.77849339,105510.0,105500.0,1.79587404]
[1762811583827,3.81970357,105510.0,105500.0,1.79587404]
[1762811584237,3.75204283,105510.0,105500.0,1.74457183]
[1762811584438,3.72540125,105510.0,105500.0,1.74457183]
[1762811584661,3.82350298,105510.0,105500.0,1.74457183]
[1762811584936,3.92348298,105510.0,105500.0,1.74457183]
[1762811585162,3.92248298,105510.0,105500.0,1.74457183]
[1762811585351,3.92248298,105510.0,105500.0,1.74557183]
[1762811585708,3.92648298,105510.0,105500.0,1.74557183]
[1762811585913,2.95093354,105510.0,105500.0,1.74457183]
[1762811586128,2.95493354,105510.0,105500.0,1.74557183]
[1762811586712,2.76537805,105510.0,105500.0,1.74557183]
[1762811587533,2.81617976,105510.0,105500.0,1.67457183]
[1762811588170,2.80130669,105510.0,105500.0,1.67457183]
[1762811590025,2.70132669,105510.0,105500.0,1.67457183]
[1762811590528,2.89088218,105510.0,105500.0,1.67457183]
[1762811590865,2.70132669,105510.0,105500.0,1.67457183]
[1762811591078,2.71620016,105510.0,105500.0,1.67457183]
[1762811591652,2.74541435,105510.0,105500.0,1.67457183]
[1762811591860,2.93496984,105510.0,105500.0,1.67457183]
[1762811592491,2.74541435,105510.0,105500.0,1.67457183]
[1762811592704,2.93496984,105510.0,105500.0,1.67457183]
[1762811594186,2.69461264,105510.0,105500.0,1.67457183]
[1762811594618,2.88416813,105510.0,105500.0,1.60357183]
[1762811594840,2.93497034,105510.0,105500.0,1.60357183]
[1762811595314,1.53234049,105510.0,105500.0,1.60357183]
[1762811595533,1.84352304,105510.0,105500.0,1.60357183]
[1762811595749,2.16652304,105510.0,105500.0,1.60357183]
[1762811595965,1.81464976,105510.0,105500.0,1.60357183]
[1762811596184,1.82464975,105510.0,105500.0,1.60357183]
[1762811596384,2.13764976,105510.0,105500.0,1.60357183]
[1762811596604,2.17383204,105510.0,105500.0,1.60357183]
[1762811596809,2.17283204,105510.0,105500.0,1.60257183]
[1762811597014,1.85031556,105510.0,105500.0,1.60357183]
[1762811597580,1.84831556,105510.0,105500.0,1.60257183]
[1762811597777,1.84831556,105510.0,105500.0,1.79214528]
[1762811598027,1.84531556,105510.0,105500.0,1.79314528]
[1762811598442,1.84731556,105510.0,105500.0,1.79314528]
[1762811598758,1.862187,105510.0,105500.0,1.79314528]
[1762811599228,1.83677548,105510.0,105500.0,1.79314528]
[1762811599395,1.83674974,105510.0,105500.0,1.60357183]
[1762811600002,1.83674147,105510.0,105500.0,1.79314528]
[1762811600230,1.18922499,105510.0,105500.0,1.79314528]
[1762811600468,1.46492388,105510.0,105500.0,1.60357183]
[1762811600667,1.78792388,105510.0,105500.0,1.60357183]
[1762811601536,1.78792388,105510.0,105500.0,1.79314528]
[1762811601891,1.78792388,105510.0,105500.0,1.60357183]
[1762811602094,2.2382541,105510.0,105500.0,1.60357183]
[1762811602302,2.18895673,105510.0,105500.0,1.60357183]
[1762811604918,2.16124472,105510.0,105500.0,1.79314528]
[1762811605045,2.14094247,105510.0,105500.0,1.79314528]
[1762811605448,2.14094247,105510.0,105500.0,1.60357183]
[1762811605706,2.14090668,105510.0,105500.0,1.60357183]
[1762811608484,2.16861869,105510.0,105500.0,1.60357183]
[1762811608902,2.15374725,105510.0,105500.0,1.60357183]
[1762811609520,2.16861837,105510.0,105500.0,1.60357183]
[1762811612262,2.18348945,105510.0,105500.0,1.60357183]
[1762811613639,1.53445649,105510.0,105500.0,1.60357183]
[1762811613923,2.18348945,105510.0,105500.0,1.60357183]
[1762811614544,1.68348945,105510.0,105500.0,1.60357183]
[1762811616295,1.03445649,105510.0,105500.0,1.60357183]
[1762811616494,1.68348945,105510.0,105500.0,1.60357183]
[1762811617104,1.70378287,105510.0,105500.0,1.60357183]
[1762811617310,1.68348945,105510.0,105500.0,1.60357183]
[1762811617516,1.70380816,105510.0,105500.0,1.60357183]
[1762811618981,1.65580015,105510.0,105500.0,1.79314528]
[1762811619560,0.79189607,105510.0,105500.0,1.79314528]
[1762811619762,1.30154147,105510.0,105500.0,1.79314528]
[1762811620349,1.10154147,105510.0,105500.0,1.79314528]
[1762811620551,1.30154147,105510.0,105500.0,1.79314528]
[1762811621379,1.42605795,105510.0,105500.0,1.79314528]
[1762811621598,1.62605795,105510.0,105500.0,1.79314528]
[1762811622002,1.30154147,105510.0,105500.0,1.79314528]
[1762811622231,1.1218657,105510.0,105500.0,1.79314528]
[1762811622475,1.3218657,105510.0,105500.0,1.79314528]
[1762811622621,1.33673632,105510.0,105500.0,1.79314528]
[1762811623394,1.13673632,105510.0,105500.0,1.79314528]
[1762811623628,1.33673632,105510.0,105500.0,1.79314528]
[1762811624268,1.75832748,105510.0,105500.0,1.60357183]
[1762811624931,1.64638218,105510.0,105500.0,1.60357183]
[1762811625336,1.69943872,105510.0,105500.0,1.60357183]
[1762811626995,1.699485,105510.0,105500.0,1.60357183]
[1762811627393,1.69984078,105510.0,105500.0,1.60357183]
[1762811629563,1.64571381,105510.0,105500.0,1.60357183]
[1762811629763,1.67223672,105510.0,105500.0,1.60357183]
[1762811634550,1.67223672,105510.0,105500.0,1.79314528]
[1762811634732,1.67223672,105510.0,105500.0,1.60357183]
[1762811637288,1.67223672,105510.0,105500.0,1.79314528]
[1762811638729,1.67223672,105510.0,105500.0,1.60357183]
[1762811640598,1.02315748,105510.0,105500.0,1.79314528]
[1762811640845,0.45588732,105510.0,105500.0,1.83445528]
[1762811641065,1.10342483,105510.0,105500.0,1.83445528]
[1762811641475,0.77888521,105510.0,105500.0,1.81082528]
[1762811644930,0.26820293,105510.0,105500.0,1.86861528]
[1762811645128,0.03903765,105510.0,105500.0,1.86861528]
[1762811645336,0.01968186,105510.0,105500.0,1.86861528]
[1762811645542,0.002,105510.0,105500.0,1.86861528]
[1762811645743,0.002,105510.0,105500.0,1.86761528]
[1762811646166,0.002,105510.0,105500.0,1.86861528]
[1762811646613,0.002,105510.0,105500.0,1.86761528]
[1762811647594,0.0194037,105530.0,105520.0,0.18953752]
[1762811647818,0.03706067,105530.0,105520.0,0.23084752]
[1762811647973,0.03706067,105530.0,105520.0,0.26300752]
[1762811648171,0.0194037,105530.0,105520.0,0.26300752]
[1762811648830,0.0194037,105530.0,105520.0,0.26400752]
[1762811649390,0.00204791,105530.0,105520.0,0.26400752]
[1762811649595,0.00204791,105530.0,105520.0,0.26300752]
[1762811649825,0.00304791,105530.0,105520.0,0.26800752]
[1762811650646,0.00104791,105530.0,105520.0,0.26800752]
[1762811651133,0.00104791,105530.0,105520.0,0.27000752]
[1762811653677,0.0204037,105530.0,105520.0,0.27000752]
[1762811654318,0.00104791,105530.0,105520.0,0.27000752]
[1762811655899,0.00104791,105530.0,105520.0,0.29848863]
[1762811656102,4.791e-05,105530.0,105520.0,0.29348863]
[1762811656710,4.791e-05,105530.0,105520.0,0.29148863]
[1762811657115,4.791e-05,105530.0,105520.0,0.29448863]
[1762811657456,4.791e-05,105530.0,105520.0,0.29148863]
[1762811657674,0.00104791,105530.0,105520.0,0.29648863]
[1762811657883,0.00204791,105530.0,105520.0,0.30148863]
[1762811658286,0.00104791,105530.0,105520.0,0.29648863]
[1762811658707,0.00204791,105530.0,105520.0,0.30548863]
[1762811662256,1e-08,105530.0,105520.0,0.30548863]
[1762811668335,0.00086985,105540.0,105530.0,0.26217956]
[1762811668336,1e-08,105540.0,105530.0,0.26217956]
[1762811668541,1e-08,105540.0,105530.0,0.34727387]
[1762811669081,1e-08,105540.0,105530.0,0.37575206]
[1762811669277,0.01759585,105540.0,105530.0,0.37575206]
[1762811669650,1e-08,105540.0,105530.0,0.37575206]
[1762811669852,0.03421669,105570.0,105560.0,0.1894657]
[1762811670056,0.04306255,105570.0,105560.0,0.2298857]
[1762811670328,0.04306255,105570.0,105560.0,0.2621257]
[1762811670530,0.00884586,105570.0,105560.0,0.2621257]
[1762811671198,0.00984586,105570.0,105560.0,0.2671257]
[1762811675377,0.01055253,105570.0,105560.0,0.2671257]
[1762811676527,0.01055253,105570.0,105560.0,0.29559867]
[1762811676770,0.00955253,105570.0,105560.0,0.29159867]
[1762811676976,0.00955253,105570.0,105560.0,0.29059867]
[1762811677175,0.01055253,105570.0,105560.0,0.29759867]
[1762811681399,0.0281935,105570.0,105560.0,0.29759867]
[1762811690752,0.0281935,105570.0,105560.0,0.2691257]
[1762811691990,0.01485767,105590.0,105580.0,0.15720981]
[1762811692134,0.01485767,105590.0,105580.0,0.21303981]
[1762811693338,0.01485767,105590.0,105580.0,0.21503981]
[1762811694153,0.34334397,105600.0,105590.0,0.18941187]
[1762811694381,0.34334397,105600.0,105590.0,0.25810187]
[1762811695015,0.34334397,105600.0,105590.0,0.25710187]
[1762811695793,0.34334397,105600.0,105590.0,0.26010187]
[1762811696157,0.323,105600.0,105590.0,0.26010187]
[1762811696362,0.323,105600.0,105590.0,0.26110187]
[1762811697497,0.34235579,105600.0,105590.0,0.26110187]
[1762811700268,0.01935579,105600.0,105590.0,0.26110187]
[1762811700682,0.02006215,105600.0,105590.0,0.26110187]
[1762811701564,0.0204,105620.0,105610.0,0.189376]
[1762811701855,0.02087941,105620.0,105610.0,0.260276]
[1762811703986,0.04736843,105620.0,105610.0,0.261276]
[1762811704617,0.04736843,105620.0,105610.0,0.260276]
[1762811704806,0.04736843,105620.0,105610.0,0.204866]
[1762811704968,0.04736843,105620.0,105610.0,0.208866]
[1762811705176,0.04736843,105620.0,105610.0,0.232656]
[1762811705345,0.04736843,105620.0,105610.0,0.266276]
[1762811706005,0.37036843,105620.0,105610.0,0.266276]
[1762811706988,0.04736843,105620.0,105610.0,0.266276]
[1762811707197,0.37036843,105620.0,105610.0,0.266276]
[1762811707459,0.37083918,105620.0,105610.0,0.266276]
[1762811709112,0.04783918,105620.0,105610.0,0.266276]
[1762811711327,0.03900951,105620.0,105610.0,0.266276]
[1762811712080,0.02135016,105620.0,105610.0,0.266276]
[1762811718645,0.0204,105630.0,105620.0,0.18935807]
[1762811718872,0.04699333,105630.0,105620.0,0.26025807]
[1762811719326,0.03699333,105630.0,105620.0,0.26025807]
[1762811719524,0.0105437,105630.0,105620.0,0.26025807]
[1762811719882,0.0105437,105630.0,105620.0,0.26225807]
[1762811720367,0.0105437,105630.0,105620.0,0.26325807]
[1762811721137,0.0105437,105630.0,105620.0,0.26225807]
[1762811721435,0.0105437,105630.0,105620.0,0.26425807]
[1762811721639,0.0105437,105630.0,105620.0,0.26225807]
[1762811722139,0.0105437,105630.0,105620.0,0.26525807]
[1762811724285,0.01077903,105630.0,105620.0,0.26525807]
[1762811727798,0.0284228,105630.0,105620.0,0.26525807]
[1762811729758,1e-08,105630.0,105620.0,0.26525807]
[1762811729968,0.0204,105640.0,105630.0,0.18934014]
[1762811730180,0.02922717,105640.0,105630.0,0.33988445]
[1762811730561,0.03525046,105650.0,105640.0,0.18932222]
[1762811730766,0.0204,105650.0,105640.0,0.25477222]
[1762811732905,0.0204,105650.0,105640.0,0.25777222]
[1762811733204,0.0204,105650.0,105640.0,0.25877222]
[1762811739881,0.0204,105650.0,105640.0,0.25883415]
[1762811740686,0.02087055,105650.0,105640.0,0.25883415]
[1762811741735,0.03852736,105650.0,105640.0,0.25883415]
[1762811742638,0.04735697,105650.0,105640.0,0.25883415]
[1762811743533,0.01000001,105650.0,105640.0,0.25883415]
[1762811744089,0.01,105650.0,105640.0,0.25883415]
[1762811744908,0.0004,105660.0,105650.0,0.1893043]
[1762811745108,0.00044,105660.0,105650.0,0.2547543]
[1762811745887,0.01484808,105670.0,105660.0,0.18928639]
[1762811746131,0.00018362,105670.0,105660.0,0.25473639]
[1762811747850,0.00018362,105670.0,105660.0,0.25773639]
[1762811750814,0.00065404,105670.0,105660.0,0.25773639]
[1762811755931,0.02712971,105670.0,105660.0,0.25773639]
[1762811756140,0.00947926,105670.0,105660.0,0.25773639]
[1762811758294,0.00948031,105670.0,105660.0,0.25773639]
[1762811758453,0.0271306,105670.0,105660.0,0.25773639]
[1762811759087,0.0270906,105670.0,105660.0,0.25773639]
[1762811759288,0.01826925,105670.0,105660.0,0.25773639]
[1762811761043,0.02709823,105670.0,105660.0,0.25773639]
[1762811764704,0.02709823,105670.0,105660.0,0.03896]
[1762811764911,0.86539218,105670.0,105660.0,0.19228639]
[1762811765110,0.78649391,105670.0,105660.0,0.19228639]
[1762811765315,0.68839218,105670.0,105660.0,0.19228639]
[1762811765828,0.70872883,105670.0,105660.0,0.18928639]
[1762811766035,0.70872883,105670.0,105660.0,0.19028639]
[1762811766242,0.68839218,105670.0,105660.0,0.19028639]
[1762811766804,0.68939218,105670.0,105660.0,0.19028639]
[1762811767686,0.60638618,105670.0,105660.0,0.19028639]
[1762811768071,0.62638618,105670.0,105660.0,0.19028639]
[1762811771452,0.66256846,105670.0,105660.0,0.19028639]
[1762811773145,0.67741737,105670.0,105660.0,0.19028639]
[1762811773347,0.66256846,105670.0,105660.0,0.19028639]
[1762811774551,0.66256846,105670.0,105660.0,0.001]
[1762811774753,0.66256846,105670.0,105660.0,0.19028639]
[1762811776384,0.66255435,105670.0,105660.0,0.19028639]
[1762811778352,0.6297294,105670.0,105660.0,0.19028639]
[1762811778554,0.04808412,105670.0,105660.0,0.25434639]
[1762811778783,0.03925514,105670.0,105660.0,0.25434639]
[1762811778973,0.02161404,105670.0,105660.0,0.25434639]
[1762811780125,0.03646186,105670.0,105660.0,0.25434639]
[1762811783787,0.03646186,105670.0,105660.0,0.22444639]
[1762811783989,0.03646186,105670.0,105660.0,0.19028639]
[1762811784206,0.05411253,105670.0,105660.0,0.19028639]
[1762811785308,0.05411253,105670.0,105660.0,0.22354639]
[1762811785723,0.05411253,105670.0,105660.0,0.20511639]
[1762811787596,0.05411253,105670.0,105660.0,0.19028639]
[1762811788837,0.05411253,105670.0,105660.0,0.25148639]
[1762811790413,0.03926471,105670.0,105660.0,0.25148639]
[1762811791314,0.03928141,105670.0,105660.0,0.25148639]
[1762811793164,0.04811797,105670.0,105660.0,0.25148639]
[1762811793768,0.06296593,105670.0,105660.0,0.25148639]
[1762811794553,0.06296593,105670.0,105660.0,0.22354639]
[1762811796792,0.56296593,105670.0,105660.0,0.22354639]
[1762811799159,0.56296593,105670.0,105660.0,0.25148639]
[1762811801143,0.56296593,105670.0,105660.0,0.22354639]
[1762811801655,0.56296593,105670.0,105660.0,0.20511639]
[1762811801941,0.8863237,105670.0,105660.0,0.20511639]
[1762811802542,0.8863237,105670.0,105660.0,0.19028639]
[1762811803256,0.91662357,105670.0,105660.0,0.19028639]
[1762811803821,0.90177561,105670.0,105660.0,0.19028639]
[1762811805543,0.90178062,105670.0,105660.0,0.19028639]
[1762811806304,0.54812298,105670.0,105660.0,0.19028639]
[1762811806906,0.87148075,105670.0,105660.0,0.19028639]
[1762811807106,0.88632975,105670.0,105660.0,0.19028639]
[1762811808570,0.56297198,105670.0,105660.0,0.19028639]
[1762811808940,0.88636755,105670.0,105660.0,0.19028639]
[1762811811683,0.88636755,105670.0,105660.0,0.22354639]
[1762811811889,0.88636755,105670.0,105660.0,0.25148639]
[1762811814247,0.56291005,105670.0,105660.0,0.25148639]
[1762811814471,0.88630562,105670.0,105660.0,0.25148639]
[1762811816387,0.88630562,105670.0,105660.0,0.22354639]
[1762811817222,0.87145741,105670.0,105660.0,0.22354639]
[1762811817425,0.87146591,105670.0,105660.0,0.22354639]
[1762811818438,0.87146591,105670.0,105660.0,0.20511639]